bitfinex/quotes_BTCUSD_20250903
["timestamp","ask_amount","ask_price","bid_price","bid_amount"]
[1756873356168,1e-08,111150.0,111140.0,2.1857663]
[1756873356399,1e-08,111150.0,111140.0,2.3372863]
[1756873358534,1e-08,111150.0,111140.0,2.1857663]
[1756873358746,1e-08,111150.0,111140.0,2.3372863]
[1756873362791,1e-08,111150.0,111140.0,2.3371663]
[1756873363368,1e-08,111150.0,111140.0,2.3146563]
[1756873365467,1e-08,111150.0,111140.0,2.1632563]
[1756873365974,1e-08,111150.0,111140.0,1.99629099]
[1756873367229,1e-08,111150.0,111140.0,1.67796568]
[1756873367586,1e-08,111150.0,111140.0,1.99629099]
[1756873368244,0.00158,111170.0,111160.0,0.56992083]
[1756873368442,0.00356,111170.0,111160.0,0.81315682]
[1756873368799,0.32188531,111170.0,111160.0,0.68887212]
[1756873369033,0.32188531,111170.0,111160.0,0.84019212]
[1756873369431,0.32188531,111170.0,111160.0,0.84519212]
[1756873369694,0.00356,111170.0,111160.0,0.84519212]
[1756873369823,0.32188531,111170.0,111160.0,0.84519212]
[1756873372477,0.32188531,111170.0,111160.0,1.24519212]
[1756873374151,0.32030531,111170.0,111160.0,1.24519212]
[1756873374348,0.32030531,111170.0,111160.0,1.19519212]
[1756873374674,0.32030531,111170.0,111160.0,1.24519212]
[1756873374877,0.32030531,111170.0,111160.0,1.19519212]
[1756873375084,0.32030531,111170.0,111160.0,1.24519212]
[1756873375282,0.32030531,111170.0,111160.0,1.09387212]
[1756873375487,0.32030531,111170.0,111160.0,1.19519212]
[1756873375488,0.32188531,111170.0,111160.0,1.19519212]
[1756873375658,0.32188531,111170.0,111160.0,1.24519212]
[1756873376115,0.00198,111170.0,111160.0,1.24519212]
[1756873376261,0.32030531,111170.0,111160.0,1.28502973]
[1756873376702,0.32030531,111170.0,111160.0,1.23502973]
[1756873376916,0.32030531,111170.0,111160.0,1.28502973]
[1756873377136,0.00198,111170.0,111160.0,1.28502973]
[1756873377372,0.32030531,111170.0,111160.0,1.28502973]
[1756873378639,0.32188531,111170.0,111160.0,1.27614995]
[1756873378860,0.32188531,111170.0,111160.0,0.85519212]
[1756873379092,0.32188531,111170.0,111160.0,0.45519212]
[1756873379242,0.32188531,111170.0,111160.0,0.51859212]
[1756873379671,0.32188531,111170.0,111160.0,0.36727212]
[1756873379873,0.32188531,111170.0,111160.0,0.51859212]
[1756873380768,0.32030531,111170.0,111160.0,0.51859212]
[1756873390252,0.00198,111170.0,111160.0,0.52156212]
[1756873390471,0.32030531,111170.0,111160.0,0.52373212]
[1756873392199,0.00198,111170.0,111160.0,0.52373212]
[1756873392380,0.32030531,111170.0,111160.0,0.52373212]
[1756873394295,0.32030531,111170.0,111160.0,0.52156212]
[1756873395103,0.32030531,111170.0,111160.0,0.52373212]
[1756873397256,0.00198,111170.0,111160.0,0.52373212]
[1756873397435,0.32030531,111170.0,111160.0,0.52373212]
[1756873397640,0.42640308,111170.0,111160.0,0.52373212]
[1756873399687,0.42442308,111170.0,111160.0,0.52373212]
[1756873400137,0.00178,111190.0,111180.0,0.17988846]
[1756873400294,0.42805945,111190.0,111180.0,0.33120846]
[1756873400502,0.42832393,111190.0,111180.0,0.33120846]
[1756873400882,0.42832393,111190.0,111180.0,0.358245]
[1756873401289,0.42832393,111190.0,111180.0,0.359245]
[1756873401548,0.42832393,111190.0,111180.0,0.207925]
[1756873401754,0.42832393,111190.0,111180.0,0.359245]
[1756873402341,0.42932393,111190.0,111180.0,0.359245]
[1756873404128,0.42932393,111190.0,111180.0,0.207925]
[1756873404335,0.60919622,111190.0,111180.0,0.207925]
[1756873404624,0.94919622,111190.0,111180.0,0.33220846]
[1756873405612,0.94919622,111190.0,111180.0,0.18088846]
[1756873405945,0.94919622,111190.0,111180.0,0.15228]
[1756873406887,0.94919622,111190.0,111180.0,0.33216846]
[1756873411742,0.94919622,111190.0,111180.0,0.18088846]
[1756873411947,0.94919622,111190.0,111180.0,0.33216846]
[1756873416095,0.94761622,111190.0,111180.0,0.33216846]
[1756873417399,0.76576393,111190.0,111180.0,0.33730846]
[1756873417627,0.34134085,111190.0,111180.0,0.33730846]
[1756873417866,0.76576393,111190.0,111180.0,0.36434677]
[1756873422457,0.42576393,111190.0,111180.0,0.36434677]
[1756873422663,0.00134085,111190.0,111180.0,0.45626276]
[1756873422864,0.42576393,111190.0,111180.0,0.45626276]
[1756873423281,0.00134085,111190.0,111180.0,0.45626276]
[1756873424336,0.42576393,111190.0,111180.0,0.45626276]
[1756873425046,0.00134085,111190.0,111180.0,0.45626276]
[1756873425300,0.42576393,111190.0,111180.0,0.45626276]
[1756873425734,0.42576393,111190.0,111180.0,0.30498276]
[1756873425936,0.42576393,111190.0,111180.0,0.45626276]
[1756873427572,0.42576393,111190.0,111180.0,0.30498276]
[1756873427774,0.42576393,111190.0,111180.0,0.45622276]
[1756873429736,0.42576393,111190.0,111180.0,0.30498276]
[1756873429958,0.42576393,111190.0,111180.0,0.45108276]
[1756873429959,0.42773393,111190.0,111180.0,0.45108276]
[1756873430164,0.42773393,111190.0,111180.0,0.45408276]
[1756873430603,0.42773393,111190.0,111180.0,0.30284276]
[1756873430802,0.42773393,111190.0,111180.0,0.45408276]
[1756873431373,0.42576393,111190.0,111180.0,0.45623276]
[1756873432012,0.42773393,111190.0,111180.0,0.45623276]
[1756873432860,0.42773393,111190.0,111180.0,0.45408276]
[1756873433113,0.42773393,111190.0,111180.0,0.45623276]
[1756873434874,0.42576393,111190.0,111180.0,0.45623276]
[1756873437081,0.00134085,111190.0,111180.0,0.45623276]
[1756873437287,0.42747945,111190.0,111180.0,0.45623276]
[1756873437550,0.42576393,111190.0,111180.0,0.45623276]
[1756873442246,0.42576393,111190.0,111180.0,0.46518688]
[1756873442553,0.42576393,111190.0,111180.0,0.45623276]
[1756873443858,0.00134085,111190.0,111180.0,0.45623276]
[1756873444386,0.00134085,111190.0,111180.0,0.48904183]
[1756873445339,0.00134085,111190.0,111180.0,0.48804183]
[1756873445579,0.00234085,111190.0,111180.0,0.49404183]
[1756873446110,0.00134085,111190.0,111180.0,0.49404183]
[1756873446375,0.00134085,111190.0,111180.0,0.50004183]
[1756873449209,0.00134085,111190.0,111180.0,0.50000183]
[1756873449904,0.00134085,111190.0,111180.0,0.34880183]
[1756873450091,0.00134085,111190.0,111180.0,0.50000183]
[1756873451426,0.00134085,111190.0,111180.0,0.52094065]
[1756873452055,0.00134085,111190.0,111180.0,0.94536373]
[1756873452258,0.42442308,111210.0,111200.0,0.17985611]
[1756873452554,0.49816939,111220.0,111210.0,0.17983994]
[1756873452666,0.50014939,111220.0,111210.0,0.27175593]
[1756873453066,0.42660308,111220.0,111210.0,0.27175593]
[1756873453275,0.42660308,111220.0,111210.0,0.27494593]
[1756873453478,0.42660308,111220.0,111210.0,0.29878435]
[1756873454117,0.00218,111220.0,111210.0,0.29878435]
[1756873454469,0.43744721,111220.0,111210.0,0.30078435]
[1756873454649,0.43573169,111220.0,111210.0,0.30078435]
[1756873455908,0.43573169,111220.0,111210.0,0.30378435]
[1756873456131,0.01130861,111220.0,111210.0,0.30378435]
[1756873456357,0.43744721,111220.0,111210.0,0.30378435]
[1756873456583,0.43573169,111220.0,111210.0,0.30378435]
[1756873456715,0.43573169,111220.0,111210.0,0.30697435]
[1756873458890,0.42660308,111220.0,111210.0,0.30697435]
[1756873459106,0.42462308,111220.0,111210.0,0.30895435]
[1756873459651,0.63627758,111220.0,111210.0,0.30895435]
[1756873461714,0.31823879,111220.0,111210.0,0.30895435]
[1756873461945,0.0002,111220.0,111210.0,0.30895435]
[1756873462159,0.31823879,111220.0,111210.0,0.30895435]
[1756873465723,0.31823879,111220.0,111210.0,0.46007435]
[1756873467369,0.0002,111220.0,111210.0,0.46007435]
[1756873467777,0.31823879,111220.0,111210.0,0.46007435]
[1756873469077,0.0002,111220.0,111210.0,0.46007435]
[1756873470596,0.0002,111220.0,111210.0,0.30895435]
[1756873471035,0.0002,111220.0,111210.0,0.46007435]
[1756873473537,0.31823879,111220.0,111210.0,0.46007435]
[1756873476183,0.0002,111220.0,111210.0,0.46007435]
[1756873480205,0.0002,111220.0,111210.0,0.77811314]
[1756873480838,1e-08,111220.0,111210.0,0.79905196]
[1756873481089,1e-08,111220.0,111210.0,1.18905196]
[1756873481536,1e-08,111220.0,111210.0,1.23905196]
[1756873482145,1e-08,111220.0,111210.0,1.26294196]
[1756873482461,1e-08,111220.0,111210.0,1.25994196]
[1756873482581,1e-08,111220.0,111210.0,1.26394196]
[1756873482788,1e-08,111220.0,111210.0,1.57998075]
[1756873483018,1e-08,111220.0,111210.0,1.34285979]
[1756873483442,1e-08,111220.0,111210.0,1.34885979]
[1756873483727,1e-08,111220.0,111210.0,1.030821]
[1756873483874,1e-08,111220.0,111210.0,1.34485979]
[1756873484638,1e-08,111220.0,111210.0,1.34985979]
[1756873484846,1e-08,111220.0,111210.0,1.031821]
[1756873485077,1e-08,111220.0,111210.0,2.06789858]
[1756873486622,1e-08,111220.0,111210.0,1.91681858]
[1756873486844,1e-08,111220.0,111210.0,2.06785858]
[1756873488583,1e-08,111220.0,111210.0,1.91681858]
[1756873488810,1e-08,111220.0,111210.0,2.06785858]
[1756873489040,1e-08,111220.0,111210.0,1.280741]
[1756873489280,1e-08,111220.0,111210.0,1.72592979]
[1756873489464,1e-08,111220.0,111210.0,1.64497196]
[1756873492638,1e-08,111220.0,111210.0,1.49393196]
[1756873492849,1e-08,111220.0,111210.0,1.64497196]
[1756873495540,1e-08,111220.0,111210.0,1.91417196]
[1756873497043,1e-08,111220.0,111210.0,1.91413196]
[1756873497243,1e-08,111220.0,111210.0,1.99508979]
[1756873498949,1e-08,111220.0,111210.0,1.677051]
[1756873499152,1e-08,111220.0,111210.0,1.99508979]
[1756873500134,1e-08,111220.0,111210.0,2.31312858]
[1756873501581,1e-08,111220.0,111210.0,1.99508979]
[1756873502414,1e-08,111220.0,111210.0,1.84408979]
[1756873502628,0.00198001,111220.0,111210.0,1.476051]
[1756873502840,0.00198001,111220.0,111210.0,1.60094218]
[1756873503050,0.00198001,111220.0,111210.0,1.85896196]
[1756873503263,0.00198001,111220.0,111210.0,1.54092317]
[1756873503502,0.00198001,111220.0,111210.0,1.86190196]
[1756873505151,0.00198001,111220.0,111210.0,1.86385196]
[1756873505960,0.00198001,111220.0,111210.0,1.71285196]
[1756873506160,0.00198001,111220.0,111210.0,1.70796196]
[1756873506364,0.00198001,111220.0,111210.0,1.54092317]
[1756873506540,0.00198001,111220.0,111210.0,1.80896196]
[1756873506741,0.00198001,111220.0,111210.0,1.85896196]
[1756873507473,0.00198001,111220.0,111210.0,1.58976196]
[1756873508366,0.00198001,111220.0,111210.0,1.67071979]
[1756873509669,0.00198001,111220.0,111210.0,1.62071979]
[1756873509870,0.00198001,111220.0,111210.0,1.53976196]
[1756873510193,0.00198001,111220.0,111210.0,1.22172317]
[1756873510392,0.00198001,111220.0,111210.0,1.53976196]
[1756873510524,0.00198001,111220.0,111210.0,1.62071979]
[1756873510946,0.00198001,111220.0,111210.0,1.302681]
[1756873511147,0.00198001,111220.0,111210.0,1.62071979]
[1756873511350,0.00198001,111220.0,111210.0,1.46971979]
[1756873511550,0.00198001,111220.0,111210.0,1.62067979]
[1756873511728,0.00198001,111220.0,111210.0,1.46971979]
[1756873511946,0.00198001,111220.0,111210.0,1.62067979]
[1756873512325,0.00198001,111220.0,111210.0,1.62390979]
[1756873512581,0.00198001,111220.0,111210.0,0.54170218]
[1756873512782,0.00198001,111220.0,111210.0,0.46074435]
[1756873514466,0.3200188,111220.0,111210.0,0.46074435]
[1756873515047,0.3215988,111220.0,111210.0,0.46074435]
[1756873515251,0.00198001,111220.0,111210.0,0.46074435]
[1756873515608,0.3200188,111220.0,111210.0,0.46074435]
[1756873515811,0.3200188,111220.0,111210.0,0.45474435]
[1756873516039,0.3200188,111220.0,111210.0,0.44974435]
[1756873516231,0.3200188,111220.0,111210.0,0.45274435]
[1756873516415,0.3200188,111220.0,111210.0,0.45374435]
[1756873516777,0.3200188,111220.0,111210.0,0.45674435]
[1756873516978,0.3200188,111220.0,111210.0,0.45274435]
[1756873517216,0.3200188,111220.0,111210.0,0.45674435]
[1756873517935,0.3200188,111220.0,111210.0,0.30578435]
[1756873518275,0.3200188,111220.0,111210.0,0.45674435]
[1756873518482,0.00198001,111220.0,111210.0,0.45674435]
[1756873519044,0.00198001,111220.0,111210.0,0.45997435]
[1756873519349,0.00198001,111220.0,111210.0,0.30901435]
[1756873519474,0.00198001,111220.0,111210.0,0.45997435]
[1756873519881,0.00198001,111220.0,111210.0,0.45674435]
[1756873520231,0.00198001,111220.0,111210.0,0.46197435]
[1756873521530,1e-08,111220.0,111210.0,0.46197435]
[1756873528454,0.42710255,111240.0,111230.0,0.1798076]
[1756873528642,0.42742667,111240.0,111230.0,0.3307676]
[1756873529166,0.42742667,111240.0,111230.0,0.35779211]
[1756873529689,0.42742667,111240.0,111230.0,0.35979211]
[1756873529912,0.42742667,111240.0,111230.0,0.36079211]
[1756873530862,0.42742667,111240.0,111230.0,0.20983211]
[1756873531080,0.42742667,111240.0,111230.0,0.36079211]
[1756873531988,0.42742667,111240.0,111230.0,0.20983211]
[1756873532223,0.42742667,111240.0,111230.0,0.36079211]
[1756873533173,0.42742667,111240.0,111230.0,0.20983211]
[1756873533400,0.00346494,111240.0,111230.0,0.36079211]
[1756873533628,0.42914219,111240.0,111230.0,0.36079211]
[1756873533856,0.42742667,111240.0,111230.0,0.36079211]
[1756873534063,0.00346494,111240.0,111230.0,0.36079211]
[1756873534274,0.42914219,111240.0,111230.0,0.36079211]
[1756873534494,0.42742667,111240.0,111230.0,0.36079211]
[1756873535461,0.42627112,111240.0,111230.0,0.36079211]
[1756873535918,0.42627112,111240.0,111230.0,0.20983211]
[1756873536136,0.42627112,111240.0,111230.0,0.36079211]
[1756873536350,0.42627112,111240.0,111230.0,0.20983211]
[1756873536594,0.42627112,111240.0,111230.0,0.36079211]
[1756873537303,0.42627112,111240.0,111230.0,0.36402211]
[1756873540047,0.00046939,111240.0,111230.0,0.4580981]
[1756873540406,0.00218491,111240.0,111230.0,0.4580981]
[1756873540602,0.00046939,111240.0,111230.0,0.4580981]
[1756873542024,0.00046939,111240.0,111230.0,0.4673003]
[1756873542600,0.00046939,111240.0,111230.0,0.89126203]
[1756873542836,0.0002,111250.0,111240.0,0.17979144]
[1756873543050,0.00034079,111250.0,111240.0,0.27395482]
[1756873543260,0.00034079,111250.0,111240.0,0.27488743]
[1756873543465,0.00034079,111250.0,111240.0,0.27704743]
[1756873543887,0.00034079,111250.0,111240.0,0.72802727]
[1756873544105,0.00034079,111250.0,111240.0,0.30406554]
[1756873544315,0.00034079,111250.0,111240.0,0.72802727]
[1756873544948,0.00034079,111250.0,111240.0,0.72902727]
[1756873546938,1e-08,111250.0,111240.0,1.56392782]
[1756873547158,1e-08,111250.0,111240.0,1.29096609]
[1756873547608,1e-08,111250.0,111240.0,0.71500436]
[1756873547837,1e-08,111250.0,111240.0,0.86800436]
[1756873548103,1e-08,111250.0,111240.0,1.29196609]
[1756873548309,1e-08,111250.0,111240.0,1.69796609]
[1756873548523,1e-08,111250.0,111240.0,1.69296609]
[1756873548723,1e-08,111250.0,111240.0,1.69196609]
[1756873548960,1e-08,111250.0,111240.0,1.69796609]
[1756873549197,1e-08,111250.0,111240.0,1.12700436]
[1756873549400,1e-08,111250.0,111240.0,1.70388609]
[1756873550618,1e-08,111250.0,111240.0,1.55096609]
[1756873550819,1e-08,111250.0,111240.0,1.70408609]
[1756873552680,1e-08,111250.0,111240.0,1.28012436]
[1756873552928,1e-08,111250.0,111240.0,1.70408609]
[1756873555747,1e-08,111250.0,111240.0,1.55096609]
[1756873555952,1e-08,111250.0,111240.0,1.70392609]
[1756873559362,1e-08,111250.0,111240.0,1.27996436]
[1756873559540,1e-08,111250.0,111240.0,1.70392609]
[1756873560518,1e-08,111250.0,111240.0,1.55096609]
[1756873560746,0.00184001,111250.0,111240.0,1.70376609]
[1756873560951,1e-08,111250.0,111240.0,1.70376609]
[1756873561160,1e-08,111250.0,111240.0,0.72700436]
[1756873561373,0.00184001,111250.0,111240.0,0.70606554]
[1756873561582,0.00184001,111250.0,111240.0,0.85894554]
[1756873561787,0.00184001,111250.0,111240.0,1.09472554]
[1756873562028,0.00184001,111250.0,111240.0,1.24760554]
[1756873562242,0.00184001,111250.0,111240.0,0.84160554]
[1756873562442,0.00184001,111250.0,111240.0,0.84978554]
[1756873562654,0.00184001,111250.0,111240.0,0.80194554]
[1756873563091,0.00184001,111250.0,111240.0,0.85194554]
[1756873563310,1e-08,111250.0,111240.0,0.85194554]
[1756873563914,1e-08,111250.0,111240.0,0.85694554]
[1756873564857,1e-08,111250.0,111240.0,1.28090727]
[1756873565023,1e-08,111250.0,111240.0,1.30184609]
[1756873565237,1e-08,111250.0,111240.0,0.87788436]
[1756873565442,1e-08,111250.0,111240.0,1.30184609]
[1756873570904,1e-08,111250.0,111240.0,0.87788436]
[1756873571114,1e-08,111250.0,111240.0,1.30184609]
[1756873573834,1e-08,111250.0,111240.0,1.14896609]
[1756873574042,1e-08,111250.0,111240.0,1.30160609]
[1756873574439,1e-08,111250.0,111240.0,1.14896609]
[1756873574638,1e-08,111250.0,111240.0,1.30160609]
[1756873575284,1e-08,111250.0,111240.0,1.38256392]
[1756873577893,1e-08,111250.0,111240.0,1.38244392]
[1756873580621,1e-08,111250.0,111240.0,1.44580392]
[1756873581506,1e-08,111250.0,111240.0,1.65726351]
[1756873583107,1e-08,111250.0,111240.0,1.50474351]
[1756873583255,1e-08,111250.0,111240.0,1.65714351]
[1756873584005,1e-08,111250.0,111240.0,1.02172219]
[1756873584154,1e-08,111250.0,111240.0,1.65714351]
[1756873584370,0.00184001,111250.0,111240.0,0.86932219]
[1756873584567,0.00184001,111250.0,111240.0,1.33405285]
[1756873584793,1e-08,111250.0,111240.0,1.33908285]
[1756873584999,1e-08,111250.0,111240.0,1.18672285]
[1756873585207,0.00184001,111250.0,111240.0,1.33904285]
[1756873585892,1e-08,111250.0,111240.0,1.33912285]
[1756873586933,0.00184001,111250.0,111240.0,0.84304337]
[1756873587139,0.00184001,111250.0,111240.0,1.31622403]
[1756873587339,0.00184001,111250.0,111240.0,1.31315403]
[1756873587490,0.00184001,111250.0,111240.0,1.31622403]
[1756873588737,0.00184001,111250.0,111240.0,1.26818403]
[1756873588940,0.00184001,111250.0,111240.0,1.31818403]
[1756873589359,1e-08,111250.0,111240.0,1.31818403]
[1756873590301,1e-08,111250.0,111240.0,1.66818403]
[1756873590507,1e-08,111250.0,111240.0,1.71818403]
[1756873595373,1e-08,111250.0,111240.0,1.31818403]
[1756873596517,1e-08,111250.0,111240.0,1.26818403]
[1756873596731,1e-08,111250.0,111240.0,1.31818403]
[1756873599422,1e-08,111250.0,111240.0,1.26818403]
[1756873599651,1e-08,111250.0,111240.0,1.31818403]
[1756873602434,1e-08,111250.0,111240.0,1.26818403]
[1756873602632,1e-08,111250.0,111240.0,1.31818403]
[1756873603021,1e-08,111250.0,111240.0,1.31782403]
[1756873604446,1e-08,111250.0,111240.0,1.00011337]
[1756873604611,1e-08,111250.0,111240.0,1.31782403]
[1756873607100,1e-08,111250.0,111240.0,1.31770403]
[1756873608127,1e-08,111250.0,111240.0,0.99999337]
[1756873608331,1e-08,111250.0,111240.0,1.26770403]
[1756873608833,0.00184001,111250.0,111240.0,0.79304337]
[1756873609045,0.00299001,111250.0,111240.0,0.52400554]
[1756873609249,0.31955067,111250.0,111240.0,0.52400554]
[1756873611399,0.31955067,111250.0,111240.0,0.37208554]
[1756873611609,0.31955067,111250.0,111240.0,0.52392554]
[1756873612237,0.32070067,111250.0,111240.0,0.52392554]
[1756873612440,0.32952561,111250.0,111240.0,0.52392554]
[1756873612643,0.01066495,111250.0,111240.0,0.52392554]
[1756873612860,0.32837561,111250.0,111240.0,0.52392554]
[1756873613042,0.32837561,111250.0,111240.0,0.51892554]
[1756873613283,0.01066495,111250.0,111240.0,0.51892554]
[1756873613476,0.32837561,111250.0,111240.0,0.37008554]
[1756873613663,0.32837561,111250.0,111240.0,0.52192554]
[1756873614688,0.32837561,111250.0,111240.0,0.51692554]
[1756873615108,0.32837561,111250.0,111240.0,0.51992554]
[1756873615993,0.32837561,111250.0,111240.0,0.36808554]
[1756873616186,0.32837561,111250.0,111240.0,0.51984554]
[1756873617542,0.00184001,111250.0,111240.0,0.51984554]
[1756873617751,0.31955067,111250.0,111240.0,0.51984554]
[1756873618030,0.31955067,111250.0,111240.0,0.52283554]
[1756873618446,0.31955067,111250.0,111240.0,0.52488554]
[1756873619759,0.31771067,111250.0,111240.0,0.52488554]
[1756873620181,0.31955067,111250.0,111240.0,0.52283554]
[1756873620385,0.31955067,111250.0,111240.0,0.51976554]
[1756873620842,0.00184001,111250.0,111240.0,0.51976554]
[1756873621062,0.32126619,111250.0,111240.0,0.51976554]
[1756873621259,0.31955067,111250.0,111240.0,0.51976554]
[1756873621820,0.31955067,111250.0,111240.0,0.52275554]
[1756873623032,0.31955067,111250.0,111240.0,0.52271554]
[1756873623438,0.00184001,111250.0,111240.0,0.52271554]
[1756873623653,0.31955067,111250.0,111240.0,0.52271554]
[1756873624276,0.31955067,111250.0,111240.0,0.52476554]
[1756873630869,0.31955067,111250.0,111240.0,0.42760955]
[1756873631074,0.63841133,111250.0,111240.0,0.27616955]
[1756873631280,0.63841133,111250.0,111240.0,0.42760955]
[1756873631487,0.63726133,111250.0,111240.0,0.42760955]
[1756873631702,0.63726133,111250.0,111240.0,0.42460955]
[1756873631904,0.63726133,111250.0,111240.0,0.42360955]
[1756873632109,0.63726133,111250.0,111240.0,0.42560955]
[1756873632314,0.63726133,111250.0,111240.0,0.42360955]
[1756873632497,0.31955067,111250.0,111240.0,0.42360955]
[1756873632694,0.31955067,111250.0,111240.0,0.42560955]
[1756873633358,0.00184001,111250.0,111240.0,0.42560955]
[1756873633593,0.32126619,111250.0,111240.0,0.42560955]
[1756873633799,0.31955067,111250.0,111240.0,0.42560955]
[1756873634507,0.63726133,111250.0,111240.0,0.42560955]
[1756873635346,0.81703661,111250.0,111240.0,0.21080955]
[1756873635555,0.81703661,111250.0,111240.0,0.33531144]
[1756873636105,0.81703661,111250.0,111240.0,0.18379144]
[1756873636318,0.81818661,111250.0,111240.0,0.33527144]
[1756873636909,0.81703661,111250.0,111240.0,0.33527144]
[1756873637315,0.81703661,111250.0,111240.0,0.33327144]
[1756873637531,0.81703661,111250.0,111240.0,0.33323144]
[1756873637778,0.81818661,111250.0,111240.0,0.33423144]
[1756873637983,0.81703661,111250.0,111240.0,0.33423144]
[1756873638198,0.81703661,111250.0,111240.0,0.001]
[1756873638409,1.62737727,111250.0,111240.0,0.001]
[1756873638622,1.65440428,111250.0,111240.0,0.002]
[1756873639062,1.65440428,111250.0,111240.0,0.001]
[1756873639271,1.65440428,111250.0,111240.0,0.002]
[1756873639694,1.65440428,111250.0,111240.0,0.001]
[1756873640126,1.65440428,111250.0,111240.0,0.002]
[1756873640552,1.65440428,111250.0,111240.0,0.001]
[1756873641718,1.54941122,111250.0,111240.0,0.001]
[1756873641933,1.66226603,111250.0,111240.0,0.001]
[1756873642151,2.09916603,111250.0,111240.0,0.001]
[1756873643804,1.94768603,111250.0,111240.0,0.001]
[1756873644021,1.25110711,111250.0,111240.0,0.001]
[1756873644249,2.09924603,111250.0,111240.0,0.001]
[1756873650350,1.94768603,111250.0,111240.0,0.001]
[1756873650735,2.09940603,111250.0,111240.0,0.001]
[1756873651968,1.94768603,111250.0,111240.0,0.001]
[1756873652142,2.09940603,111250.0,111240.0,0.001]
[1756873652760,1.66250603,111250.0,111240.0,0.001]
[1756873660503,1.66135603,111250.0,111240.0,0.001]
[1756873661388,1.68915975,111250.0,111240.0,0.001]
[1756873664414,1.69547639,111250.0,111240.0,0.001]
[1756873665534,1.78739238,111250.0,111240.0,0.001]
[1756873666215,1.69547639,111250.0,111240.0,0.001]
[1756873669580,1.69662639,111250.0,111240.0,0.001]
[1756873669983,1.69547639,111250.0,111240.0,0.001]
[1756873671394,1.71235999,111250.0,111240.0,0.001]
[1756873672309,1.69547639,111250.0,111240.0,0.001]
[1756873674896,1.78739238,111250.0,111240.0,0.001]
[1756873675278,1.69547639,111250.0,111240.0,0.001]
[1756873681024,1.69550198,111250.0,111240.0,0.001]
[1756873681439,1.69550198,111250.0,111240.0,0.0041]
[1756873681870,1.69550198,111250.0,111240.0,0.001]
[1756873682987,1.77015213,111250.0,111240.0,0.001]
[1756873683103,1.88423784,111250.0,111240.0,0.001]
[1756873684124,0.1798076,111230.0,111220.0,0.0031]
[1756873684316,0.84882857,111230.0,111220.0,0.0031]
[1756873684465,0.84711305,111230.0,111220.0,0.00525]
[1756873685892,0.88702281,111230.0,111220.0,0.00525]
[1756873686098,0.73570281,111230.0,111220.0,0.00525]
[1756873686326,0.88702281,111230.0,111220.0,0.00525]
[1756873686978,0.88702281,111230.0,111220.0,0.00625]
[1756873702498,0.88886281,111230.0,111220.0,0.00625]
[1756873703563,1.10102775,111230.0,111220.0,0.00625]
[1756873705402,1.10102775,111230.0,111220.0,0.0041]
[1756873706099,1.10102775,111230.0,111220.0,0.0062]
[1756873709477,1.10102775,111230.0,111220.0,0.0041]
[1756873709667,1.10102775,111230.0,111220.0,0.0062]
[1756873710539,1.10102775,111230.0,111220.0,0.0041]
[1756873710985,1.44102775,111230.0,111220.0,0.001]
[1756873711183,1.46046413,111230.0,111220.0,0.001]
[1756873711380,1.48749831,111230.0,111220.0,0.001]
[1756873714427,1.48749831,111230.0,111220.0,0.00416]
[1756873715687,1.48749831,111230.0,111220.0,0.001]
[1756873717790,1.48749831,111230.0,111220.0,0.00416]
[1756873719933,1.48749831,111230.0,111220.0,0.001]
[1756873721095,1.48749831,111230.0,111220.0,0.00413]
[1756873721517,1.48745831,111230.0,111220.0,0.00413]
[1756873721719,1.48745831,111230.0,111220.0,0.001]
[1756873726548,1.50222768,111230.0,111220.0,0.001]
[1756873726849,1.49378804,111230.0,111220.0,0.00413]
[1756873729531,1.34250804,111230.0,111220.0,0.00413]
[1756873729735,1.49378804,111230.0,111220.0,0.00413]
[1756873730675,1.34250804,111230.0,111220.0,0.00413]
[1756873730899,1.49378804,111230.0,111220.0,0.00614]
[1756873732732,1.45387828,111230.0,111220.0,0.00614]
[1756873733127,1.45387828,111230.0,111220.0,0.001]
[1756873735940,1.45387828,111230.0,111220.0,0.00413]
[1756873736352,1.45340179,111230.0,111220.0,0.00413]
[1756873737264,1.46184268,111230.0,111220.0,0.00413]
[1756873741618,1.46184268,111230.0,111220.0,0.001]
[1756873742252,1.46184268,111230.0,111220.0,0.00413]
[1756873742605,1.46184268,111230.0,111220.0,0.00614]
[1756873745599,1.31056268,111230.0,111220.0,0.00614]
[1756873745770,1.46180268,111230.0,111220.0,0.00614]
[1756873748392,1.4618051,111230.0,111220.0,0.00614]
[1756873749885,1.3105651,111230.0,111220.0,0.00614]
[1756873750049,1.4617651,111230.0,111220.0,0.00614]
[1756873752870,1.4599251,111230.0,111220.0,0.00614]
[1756873753191,1.44515206,111230.0,111220.0,0.00614]
[1756873753599,1.41811788,111230.0,111220.0,0.00614]
[1756873753993,1.26691788,111230.0,111220.0,0.00614]
[1756873754314,1.41811788,111230.0,111220.0,0.00614]
[1756873754513,1.3986815,111230.0,111220.0,0.00614]
[1756873763026,0.7624471,111230.0,111220.0,0.00614]
[1756873763235,1.3986815,111230.0,111220.0,0.00614]
[1756873763441,1.18655053,111230.0,111220.0,0.00614]
[1756873764473,0.7624471,111230.0,111220.0,0.00614]
[1756873764805,1.18655053,111230.0,111220.0,0.00614]
[1756873772339,1.18839053,111230.0,111220.0,0.00614]
[1756873772512,1.18839053,111230.0,111220.0,0.001]
[1756873772733,1.20783326,111230.0,111220.0,0.001]
[1756873773539,1.23486644,111230.0,111220.0,0.001]
[1756873776410,1.25695526,111230.0,111220.0,0.001]
[1756873776978,1.2632851,111230.0,111220.0,0.001]
[1756873780312,1.2621351,111230.0,111220.0,0.001]
[1756873782238,1.26213513,111230.0,111220.0,0.001]
[1756873784263,1.26328513,111230.0,111220.0,0.001]
[1756873784616,1.26213513,111230.0,111220.0,0.001]
[1756873785670,1.26201513,111230.0,111220.0,0.001]
[1756873788255,1.11093513,111230.0,111220.0,0.001]
[1756873788457,1.26201513,111230.0,111220.0,0.001]
[1756873789864,1.25568526,111230.0,111220.0,0.001]
[1756873790140,1.25568526,111230.0,111220.0,0.00424]
[1756873790353,1.26201438,111230.0,111220.0,0.001]
[1756873790795,1.26201438,111230.0,111220.0,0.00424]
[1756873791235,1.25568526,111230.0,111220.0,0.00424]
[1756873794030,1.25568526,111230.0,111220.0,0.001]
[1756873794214,1.25568526,111230.0,111220.0,0.00424]
[1756873795368,1.10460526,111230.0,111220.0,0.00424]
[1756873795532,1.25564526,111230.0,111220.0,0.00424]
[1756873796081,1.10460526,111230.0,111220.0,0.00424]
[1756873796307,1.25564526,111230.0,111220.0,0.00424]
[1756873796516,1.25564526,111230.0,111220.0,0.00621]
[1756873798344,1.2619751,111230.0,111220.0,0.00621]
[1756873800550,1.1090951,111230.0,111220.0,0.00621]